[Event "Titled Tuesday Blitz August 16 Late 2022"]
[White "Omariev, Maksim"]
[Black "Bongo Akanga Ndjila, Barthelemy"]
[WhiteFideId "4193423"]
[BlackFideId "10609431"]
[WhiteElo "2304"]
[BlackElo "1768"]
[Result "1-0"]
[Round "02"]
[TimeControl "180+1"]
[Date "2022.08.18"]
[WhiteClock "0:00:00"]
[BlackClock "0:00:00"]

1. g4 {[%clk 0:00:00]}  d5 {[%clk 0:00:00]} 2. Bg2 {[%clk 0:00:00]}  h5 {[%clk 0:00:00]} 3. g5 {[%clk 0:00:00]}  g6 {[%clk 0:00:00]} 4. d4 {[%clk 0:00:00]}  Bg7 {[%clk 0:00:00]} 5. h4 {[%clk 0:00:00]}  Bf5 {[%clk 0:00:00]} 6. c3 {[%clk 0:00:00]}  e6 {[%clk 0:00:00]} 7. Qb3 {[%clk 0:00:00]}  Qc8 {[%clk 0:00:00]} 8. Bf4 {[%clk 0:00:00]}  Ne7 {[%clk 0:00:00]} 9. Nd2 {[%clk 0:00:00]}  O-O {[%clk 0:00:00]} 10. f3 {[%clk 0:00:00]}  Nd7 {[%clk 0:00:00]} 11. e4 {[%clk 0:00:00]}  dxe4 {[%clk 0:00:00]} 12. fxe4 {[%clk 0:00:00]}  Bg4 {[%clk 0:00:00]} 13. Nc4 {[%clk 0:00:00]}  Rb8 {[%clk 0:00:00]} 14. Ne3 {[%clk 0:00:00]}  e5 {[%clk 0:00:00]} 15. Nxg4 {[%clk 0:00:00]}  hxg4 {[%clk 0:00:00]} 16. Be3 {[%clk 0:00:00]}  exd4 {[%clk 0:00:00]} 17. cxd4 {[%clk 0:00:00]}  c5 {[%clk 0:00:00]} 18. d5 {[%clk 0:00:00]}  c4 {[%clk 0:00:00]} 19. Qc2 {[%clk 0:00:00]}  Ne5 {[%clk 0:00:00]} 20. Bf1 {[%clk 0:00:00]}  Nd3+ {[%clk 0:00:00]} 21. Bxd3 {[%clk 0:00:00]}  cxd3 {[%clk 0:00:00]} 22. Qxd3 {[%clk 0:00:00]}  Bxb2 {[%clk 0:00:00]} 23. Rb1 {[%clk 0:00:00]}  Bc3+ {[%clk 0:00:00]} 24. Kf2 {[%clk 0:00:00]}  f6 {[%clk 0:00:00]} 25. Kg2 {[%clk 0:00:00]}  Be5 {[%clk 0:00:00]} 26. gxf6 {[%clk 0:00:00]}  Rxf6 {[%clk 0:00:00]} 27. Bf2 {[%clk 0:00:00]}  b5 {[%clk 0:00:00]} 28. Rxb5 {[%clk 0:00:00]}  Rxb5 {[%clk 0:00:00]} 29. Qxb5 {[%clk 0:00:00]}  Qc2 {[%clk 0:00:00]} 30. Ne2 {[%clk 0:00:00]}  Qxa2 {[%clk 0:00:00]} 31. Rf1 {[%clk 0:00:00]}  Kf7 {[%clk 0:00:00]} 32. Qd7 {[%clk 0:00:00]}  g3 {[%clk 0:00:00]} 33. Nxg3 {[%clk 0:00:00]}  Bxg3 {[%clk 0:00:00]} 34. Kxg3 {[%clk 0:00:00]}  Qb3+ {[%clk 0:00:00]} 35. Kg2 {[%clk 0:00:00]}  Qf3+ {[%clk 0:00:00]} 36. Kg1 {[%clk 0:00:00]}  Qxe4 {[%clk 0:00:00]} 37. d6 {[%clk 0:00:00]} 1-0


[Site "https://www.chess.com"]

[Event "Titled Tuesday Blitz August 16 Late 2022"]
[White "Paravyan, David"]
[Black "Korchmar, Vasiliy"]
[WhiteFideId "4194985"]
[BlackFideId "24131750"]
[WhiteElo "2569"]
[BlackElo "2370"]
[Result "1-0"]
[Round "02"]
[TimeControl "180+1"]
[Date "2022.08.16"]
[WhiteClock "0:01:39"]
[BlackClock "0:00:01"]

1. e4 {[%clk 0:03:00]}  c5 {[%clk 0:03:00]} 2. Nf3 {[%clk 0:03:00]}  d6 {[%clk 0:03:00]} 3. d4 {[%clk 0:03:01]}  cxd4 {[%clk 0:03:01]} 4. Nxd4 {[%clk 0:03:01]}  Nf6 {[%clk 0:03:02]} 5. Nc3 {[%clk 0:03:01]}  Nc6 {[%clk 0:03:02]} 6. Bg5 {[%clk 0:03:02]}  Bd7 {[%clk 0:03:02]} 7. Nxc6 {[%clk 0:03:02]}  bxc6 {[%clk 0:03:00]} 8. Bc4 {[%clk 0:03:00]}  e6 {[%clk 0:02:57]} 9. Qe2 {[%clk 0:02:55]}  Qa5 {[%clk 0:02:54]} 10. Bd2 {[%clk 0:02:53]}  Qb6 {[%clk 0:02:46]} 11. O-O-O {[%clk 0:02:53]}  Be7 {[%clk 0:02:45]} 12. g4 {[%clk 0:02:52]}  d5 {[%clk 0:01:59]} 13. Bb3 {[%clk 0:02:52]}  a5 {[%clk 0:01:53]} 14. g5 {[%clk 0:02:50]}  Nxe4 {[%clk 0:01:53]} 15. Nxe4 {[%clk 0:02:51]}  dxe4 {[%clk 0:01:54]} 16. a4 {[%clk 0:02:12]}  c5 {[%clk 0:01:46]} 17. Bc3 {[%clk 0:02:12]}  Bc6 {[%clk 0:00:59]} 18. Bxg7 {[%clk 0:02:08]}  Rg8 {[%clk 0:00:43]} 19. Bf6 {[%clk 0:02:08]}  Bxf6 {[%clk 0:00:43]} 20. gxf6 {[%clk 0:02:09]}  Rb8 {[%clk 0:00:42]} 21. Rhg1 {[%clk 0:02:07]}  Rg6 {[%clk 0:00:30]} 22. Qh5 {[%clk 0:02:00]}  Bd5 {[%clk 0:00:24]} 23. Rxg6 {[%clk 0:01:53]}  hxg6 {[%clk 0:00:19]} 24. Qh8+ {[%clk 0:01:53]}  Kd7 {[%clk 0:00:19]} 25. Qg7 {[%clk 0:01:54]}  c4 {[%clk 0:00:13]} 26. Qxf7+ {[%clk 0:01:53]}  Kc6 {[%clk 0:00:12]} 27. Kb1 {[%clk 0:01:41]}  cxb3 {[%clk 0:00:08]} 28. c4 {[%clk 0:01:42]}  Rd8 {[%clk 0:00:03]} 29. cxd5+ {[%clk 0:01:41]}  Rxd5 {[%clk 0:00:01]} 30. Qxe6+ {[%clk 0:01:39]} 1-0


[Site "https://www.chess.com"]

[Event "Titled Tuesday Blitz August 16 Late 2022"]
[White "Petrovic, Aleksa"]
[Black "Quispe Santacruz, Javier"]
[WhiteFideId "967629"]
[BlackFideId "3800920"]
[WhiteElo "2262"]
[BlackElo "1929"]
[Result "1-0"]
[Round "02"]
[TimeControl "180+1"]
[Date "2022.08.18"]
[WhiteClock "0:00:00"]
[BlackClock "0:00:00"]

1. e4 {[%clk 0:00:00]}  e5 {[%clk 0:00:00]} 2. Nf3 {[%clk 0:00:00]}  Nc6 {[%clk 0:00:00]} 3. Bb5 {[%clk 0:00:00]}  a6 {[%clk 0:00:00]} 4. Ba4 {[%clk 0:00:00]}  Nf6 {[%clk 0:00:00]} 5. O-O {[%clk 0:00:00]}  Be7 {[%clk 0:00:00]} 6. Re1 {[%clk 0:00:00]}  b5 {[%clk 0:00:00]} 7. Bb3 {[%clk 0:00:00]}  d6 {[%clk 0:00:00]} 8. c3 {[%clk 0:00:00]}  O-O {[%clk 0:00:00]} 9. d4 {[%clk 0:00:00]}  Bg4 {[%clk 0:00:00]} 10. Be3 {[%clk 0:00:00]}  Nxe4 {[%clk 0:00:00]} 11. Bd5 {[%clk 0:00:00]}  Qd7 {[%clk 0:00:00]} 12. Bxe4 {[%clk 0:00:00]}  d5 {[%clk 0:00:00]} 13. Bc2 {[%clk 0:00:00]}  e4 {[%clk 0:00:00]} 14. h3 {[%clk 0:00:00]}  exf3 {[%clk 0:00:00]} 15. hxg4 {[%clk 0:00:00]}  Qxg4 {[%clk 0:00:00]} 16. Qxf3 {[%clk 0:00:00]}  Qxf3 {[%clk 0:00:00]} 17. gxf3 {[%clk 0:00:00]}  f5 {[%clk 0:00:00]} 18. f4 {[%clk 0:00:00]}  Bd6 {[%clk 0:00:00]} 19. Nd2 {[%clk 0:00:00]}  Rae8 {[%clk 0:00:00]} 20. Nf3 {[%clk 0:00:00]}  h6 {[%clk 0:00:00]} 21. Ne5 {[%clk 0:00:00]}  Bxe5 {[%clk 0:00:00]} 22. dxe5 {[%clk 0:00:00]}  Nd8 {[%clk 0:00:00]} 23. a4 {[%clk 0:00:00]} 1-0


[Site "https://www.chess.com"]

[Event "Titled Tuesday Blitz August 16 Late 2022"]
[White "Postnikov, Daniil"]
[Black "Sanchez, Robert"]
[WhiteFideId "4166329"]
[BlackFideId "2034360"]
[WhiteElo "2261"]
[BlackElo "1966"]
[Result "0-1"]
[Round "02"]
[TimeControl "180+1"]
[Date "2022.08.18"]
[WhiteClock "0:00:00"]
[BlackClock "0:00:00"]

1. e4 {[%clk 0:00:00]}  e6 {[%clk 0:00:00]} 2. d4 {[%clk 0:00:00]}  d5 {[%clk 0:00:00]} 3. e5 {[%clk 0:00:00]}  c5 {[%clk 0:00:00]} 4. c3 {[%clk 0:00:00]}  Nc6 {[%clk 0:00:00]} 5. Nf3 {[%clk 0:00:00]}  Bd7 {[%clk 0:00:00]} 6. a3 {[%clk 0:00:00]}  f6 {[%clk 0:00:00]} 7. Bd3 {[%clk 0:00:00]}  Qc7 {[%clk 0:00:00]} 8. O-O {[%clk 0:00:00]}  cxd4 {[%clk 0:00:00]} 9. cxd4 {[%clk 0:00:00]}  fxe5 {[%clk 0:00:00]} 10. Nxe5 {[%clk 0:00:00]}  Nxe5 {[%clk 0:00:00]} 11. Bf4 {[%clk 0:00:00]}  Qd8 {[%clk 0:00:00]} 12. Bxe5 {[%clk 0:00:00]}  Nf6 {[%clk 0:00:00]} 13. g4 {[%clk 0:00:00]}  Ne4 {[%clk 0:00:00]} 14. Nc3 {[%clk 0:00:00]}  Bc6 {[%clk 0:00:00]} 15. f3 {[%clk 0:00:00]}  Nxc3 {[%clk 0:00:00]} 16. bxc3 {[%clk 0:00:00]}  Qg5 {[%clk 0:00:00]} 17. f4 {[%clk 0:00:00]}  Qh4 {[%clk 0:00:00]} 18. f5 {[%clk 0:00:00]}  O-O-O {[%clk 0:00:00]} 19. Bg3 {[%clk 0:00:00]}  Qh6 {[%clk 0:00:00]} 20. Bf4 {[%clk 0:00:00]}  Qh4 {[%clk 0:00:00]} 21. fxe6 {[%clk 0:00:00]}  Bd6 {[%clk 0:00:00]} 22. Bf5 {[%clk 0:00:00]}  Kb8 {[%clk 0:00:00]} 23. Qd2 {[%clk 0:00:00]}  h6 {[%clk 0:00:00]} 24. Bxd6+ {[%clk 0:00:00]}  Rxd6 {[%clk 0:00:00]} 25. Qf4 {[%clk 0:00:00]}  Kc7 {[%clk 0:00:00]} 26. Rae1 {[%clk 0:00:00]}  Re8 {[%clk 0:00:00]} 27. Qe5 {[%clk 0:00:00]}  Re7 {[%clk 0:00:00]} 28. Qf4 {[%clk 0:00:00]}  Qg5 {[%clk 0:00:00]} 29. Qxg5 {[%clk 0:00:00]}  hxg5 {[%clk 0:00:00]} 30. Re5 {[%clk 0:00:00]}  g6 {[%clk 0:00:00]} 31. Bxg6 {[%clk 0:00:00]}  Rdxe6 {[%clk 0:00:00]} 32. Rxg5 {[%clk 0:00:00]}  Re2 {[%clk 0:00:00]} 33. Rf7 {[%clk 0:00:00]}  Rxf7 {[%clk 0:00:00]} 34. Bxf7 {[%clk 0:00:00]}  Re3 {[%clk 0:00:00]} 35. Bxd5 {[%clk 0:00:00]}  Rxc3 {[%clk 0:00:00]} 36. Rg7+ {[%clk 0:00:00]}  Kb6 {[%clk 0:00:00]} 37. Bxc6 {[%clk 0:00:00]}  bxc6 {[%clk 0:00:00]} 38. h4 {[%clk 0:00:00]}  Rxa3 {[%clk 0:00:00]} 39. h5 {[%clk 0:00:00]}  a5 {[%clk 0:00:00]} 40. h6 {[%clk 0:00:00]}  Rh3 {[%clk 0:00:00]} 41. h7 {[%clk 0:00:00]}  a4 {[%clk 0:00:00]} 42. Kg2 {[%clk 0:00:00]}  Rh4 {[%clk 0:00:00]} 43. Kg3 {[%clk 0:00:00]}  Rh1 {[%clk 0:00:00]} 44. Re7 {[%clk 0:00:00]}  a3 {[%clk 0:00:00]} 45. Re3 {[%clk 0:00:00]}  Rxh7 {[%clk 0:00:00]} 46. Rxa3 {[%clk 0:00:00]}  Rd7 {[%clk 0:00:00]} 47. Rb3+ {[%clk 0:00:00]}  Ka5 {[%clk 0:00:00]} 48. Rc3 {[%clk 0:00:00]}  Kb5 {[%clk 0:00:00]} 49. Rc5+ {[%clk 0:00:00]}  Kb6 {[%clk 0:00:00]} 50. Rc4 {[%clk 0:00:00]}  Kb5 {[%clk 0:00:00]} 51. Rc5+ {[%clk 0:00:00]}  Kb6 {[%clk 0:00:00]} 52. Rc3 {[%clk 0:00:00]}  Rxd4 {[%clk 0:00:00]} 53. g5 {[%clk 0:00:00]}  c5 {[%clk 0:00:00]} 54. Kh3 {[%clk 0:00:00]}  Kb5 {[%clk 0:00:00]} 55. g6 {[%clk 0:00:00]}  Rd8 {[%clk 0:00:00]} 56. Kg4 {[%clk 0:00:00]}  Kb4 {[%clk 0:00:00]} 57. Rc1 {[%clk 0:00:00]}  c4 {[%clk 0:00:00]} 58. Kf5 {[%clk 0:00:00]}  c3 {[%clk 0:00:00]} 59. Rb1+ {[%clk 0:00:00]}  Kc4 {[%clk 0:00:00]} 60. g7 {[%clk 0:00:00]}  c2 {[%clk 0:00:00]} 61. Rc1 {[%clk 0:00:00]}  Kc3 {[%clk 0:00:00]} 62. Ke4 {[%clk 0:00:00]}  Kd2 {[%clk 0:00:00]} 63. Rg1 {[%clk 0:00:00]}  Rg8 {[%clk 0:00:00]} 64. Kf5 {[%clk 0:00:00]}  Rxg7 {[%clk 0:00:00]} 65. Rxg7 {[%clk 0:00:00]}  c1=Q {[%clk 0:00:00]} 66. Re7 {[%clk 0:00:00]}  Kd3 {[%clk 0:00:00]} 67. Re5 {[%clk 0:00:00]}  Qf1+ {[%clk 0:00:00]} 68. Ke6 {[%clk 0:00:00]}  Kd4 {[%clk 0:00:00]} 69. Rd5+ {[%clk 0:00:00]}  Kc4 {[%clk 0:00:00]} 70. Re5 {[%clk 0:00:00]}  Qd3 {[%clk 0:00:00]} 71. Kf6 {[%clk 0:00:00]}  Qd4 {[%clk 0:00:00]} 72. Ke6 {[%clk 0:00:00]}  Kc3 {[%clk 0:00:00]} 73. Kf5 {[%clk 0:00:00]}  Kd3 {[%clk 0:00:00]} 74. Ke6 {[%clk 0:00:00]}  Qf2 {[%clk 0:00:00]} 75. Rf5 {[%clk 0:00:00]}  Qe3+ {[%clk 0:00:00]} 76. Re5 {[%clk 0:00:00]}  Qa7 {[%clk 0:00:00]} 77. Rd5+ {[%clk 0:00:00]}  Kc4 {[%clk 0:00:00]} 78. Re5 {[%clk 0:00:00]}  Qc7 {[%clk 0:00:00]} 79. Kf5 {[%clk 0:00:00]}  Kd4 {[%clk 0:00:00]} 80. Re4+ {[%clk 0:00:00]}  Kd5 {[%clk 0:00:00]} 81. Re1 {[%clk 0:00:00]}  Qf7+ {[%clk 0:00:00]} 82. Kg4 {[%clk 0:00:00]}  Qg6+ {[%clk 0:00:00]} 83. Kf3 {[%clk 0:00:00]}  Qf5+ {[%clk 0:00:00]} 84. Ke2 {[%clk 0:00:00]}  Qh3 {[%clk 0:00:00]} 85. Kd2 {[%clk 0:00:00]}  Kd4 {[%clk 0:00:00]} 86. Re2 {[%clk 0:00:00]}  Qc3+ {[%clk 0:00:00]} 87. Kd1 {[%clk 0:00:00]}  Kd3 {[%clk 0:00:00]} 88. Ra2 {[%clk 0:00:00]}  Qb3+ {[%clk 0:00:00]} 0-1


[Site "https://www.chess.com"]

[Event "Titled Tuesday Blitz August 16 Late 2022"]
[White "Pourkashiyan, Atousa"]
[Black "Rostovtsev, Dmitry"]
[WhiteFideId "12502014"]
[BlackFideId "34278320"]
[WhiteElo "2247"]
[BlackElo "2295"]
[Result "0-1"]
[Round "02"]
[TimeControl "180+1"]
[Date "2022.08.18"]
[WhiteClock "0:00:00"]
[BlackClock "0:00:00"]

1. e4 {[%clk 0:00:00]}  c5 {[%clk 0:00:00]} 2. Nf3 {[%clk 0:00:00]}  d6 {[%clk 0:00:00]} 3. d4 {[%clk 0:00:00]}  cxd4 {[%clk 0:00:00]} 4. Nxd4 {[%clk 0:00:00]}  Nf6 {[%clk 0:00:00]} 5. Nc3 {[%clk 0:00:00]}  Nc6 {[%clk 0:00:00]} 6. Bc4 {[%clk 0:00:00]}  e6 {[%clk 0:00:00]} 7. O-O {[%clk 0:00:00]}  a6 {[%clk 0:00:00]} 8. Bg5 {[%clk 0:00:00]}  Be7 {[%clk 0:00:00]} 9. a4 {[%clk 0:00:00]}  Bd7 {[%clk 0:00:00]} 10. Kh1 {[%clk 0:00:00]}  Rc8 {[%clk 0:00:00]} 11. Bb3 {[%clk 0:00:00]}  h6 {[%clk 0:00:00]} 12. Bh4 {[%clk 0:00:00]}  g5 {[%clk 0:00:00]} 13. Bg3 {[%clk 0:00:00]}  Qb6 {[%clk 0:00:00]} 14. Nxc6 {[%clk 0:00:00]}  Qxc6 {[%clk 0:00:00]} 15. e5 {[%clk 0:00:00]}  dxe5 {[%clk 0:00:00]} 16. Bxe5 {[%clk 0:00:00]}  Rd8 {[%clk 0:00:00]} 17. Qe2 {[%clk 0:00:00]}  h5 {[%clk 0:00:00]} 18. Rad1 {[%clk 0:00:00]}  h4 {[%clk 0:00:00]} 19. h3 {[%clk 0:00:00]}  g4 {[%clk 0:00:00]} 20. Bxf6 {[%clk 0:00:00]}  Bxf6 {[%clk 0:00:00]} 21. Qxg4 {[%clk 0:00:00]}  Bxc3 {[%clk 0:00:00]} 22. bxc3 {[%clk 0:00:00]}  Qxc3 {[%clk 0:00:00]} 23. Rd3 {[%clk 0:00:00]}  Qc5 {[%clk 0:00:00]} 24. Rfd1 {[%clk 0:00:00]}  Ke7 {[%clk 0:00:00]} 25. Qg7 {[%clk 0:00:00]}  Qf5 {[%clk 0:00:00]} 26. Bxe6 {[%clk 0:00:00]}  Bxe6 {[%clk 0:00:00]} 27. Rxd8 {[%clk 0:00:00]}  Rxd8 {[%clk 0:00:00]} 28. Rxd8 {[%clk 0:00:00]}  Kxd8 {[%clk 0:00:00]} 29. Qf8+ {[%clk 0:00:00]}  Kd7 {[%clk 0:00:00]} 30. Qc5 {[%clk 0:00:00]}  Qxc5 {[%clk 0:00:00]} 0-1


[Site "https://www.chess.com"]

[Event "Titled Tuesday Blitz August 16 Late 2022"]
[White "Prieto Aranguren, Alain"]
[Black "Golubev, Mikhail"]
[WhiteFideId "2268906"]
[BlackFideId "14100983"]
[WhiteElo "2224"]
[BlackElo "2374"]
[Result "0-1"]
[Round "02"]
[TimeControl "180+1"]
[Date "2022.08.18"]
[WhiteClock "0:00:00"]
[BlackClock "0:00:00"]

1. d4 {[%clk 0:00:00]}  Nf6 {[%clk 0:00:00]} 2. c4 {[%clk 0:00:00]}  g6 {[%clk 0:00:00]} 3. Nc3 {[%clk 0:00:00]}  Bg7 {[%clk 0:00:00]} 4. e4 {[%clk 0:00:00]}  d6 {[%clk 0:00:00]} 5. Be2 {[%clk 0:00:00]}  O-O {[%clk 0:00:00]} 6. Nf3 {[%clk 0:00:00]}  e5 {[%clk 0:00:00]} 7. d5 {[%clk 0:00:00]}  Qe8 {[%clk 0:00:00]} 8. Bg5 {[%clk 0:00:00]}  Nh5 {[%clk 0:00:00]} 9. Nd2 {[%clk 0:00:00]}  f5 {[%clk 0:00:00]} 10. exf5 {[%clk 0:00:00]}  Nf4 {[%clk 0:00:00]} 11. Bxf4 {[%clk 0:00:00]}  exf4 {[%clk 0:00:00]} 12. fxg6 {[%clk 0:00:00]}  Qxg6 {[%clk 0:00:00]} 13. Qb1 {[%clk 0:00:00]}  Bf5 {[%clk 0:00:00]} 14. Nce4 {[%clk 0:00:00]}  Na6 {[%clk 0:00:00]} 15. Bf3 {[%clk 0:00:00]}  Nc5 {[%clk 0:00:00]} 16. O-O {[%clk 0:00:00]}  Rae8 {[%clk 0:00:00]} 17. Re1 {[%clk 0:00:00]}  a5 {[%clk 0:00:00]} 18. Qc2 {[%clk 0:00:00]}  Re7 {[%clk 0:00:00]} 19. Re2 {[%clk 0:00:00]}  Rfe8 {[%clk 0:00:00]} 20. Rae1 {[%clk 0:00:00]}  Bd4 {[%clk 0:00:00]} 21. Kf1 {[%clk 0:00:00]}  h5 {[%clk 0:00:00]} 22. b3 {[%clk 0:00:00]}  h4 {[%clk 0:00:00]} 23. h3 {[%clk 0:00:00]}  Kf8 {[%clk 0:00:00]} 24. a3 {[%clk 0:00:00]}  Rg7 {[%clk 0:00:00]} 25. Bg4 {[%clk 0:00:00]}  Bxg4 {[%clk 0:00:00]} 26. hxg4 {[%clk 0:00:00]}  Qxg4 {[%clk 0:00:00]} 27. f3 {[%clk 0:00:00]}  Qxf3+ {[%clk 0:00:00]} 28. Rf2 {[%clk 0:00:00]}  Qg4 {[%clk 0:00:00]} 0-1


[Site "https://www.chess.com"]

[Event "Titled Tuesday Blitz August 16 Late 2022"]
[White "Rangel, Daniel"]
[Black "Lorenzo De La Riva, Lazaro"]
[WhiteFideId "2124475"]
[BlackFideId "2268809"]
[WhiteElo "2225"]
[BlackElo "2325"]
[Result "0-1"]
[Round "02"]
[TimeControl "180+1"]
[Date "2022.08.18"]
[WhiteClock "0:00:00"]
[BlackClock "0:00:00"]

1. b3 {[%clk 0:00:00]}  e6 {[%clk 0:00:00]} 2. Bb2 {[%clk 0:00:00]}  c5 {[%clk 0:00:00]} 3. Nf3 {[%clk 0:00:00]}  Nc6 {[%clk 0:00:00]} 4. g3 {[%clk 0:00:00]}  h5 {[%clk 0:00:00]} 5. Bg2 {[%clk 0:00:00]}  h4 {[%clk 0:00:00]} 6. O-O {[%clk 0:00:00]}  hxg3 {[%clk 0:00:00]} 7. hxg3 {[%clk 0:00:00]}  d6 {[%clk 0:00:00]} 8. c3 {[%clk 0:00:00]}  Nf6 {[%clk 0:00:00]} 9. d4 {[%clk 0:00:00]}  cxd4 {[%clk 0:00:00]} 10. cxd4 {[%clk 0:00:00]}  d5 {[%clk 0:00:00]} 11. Ne5 {[%clk 0:00:00]}  Nxe5 {[%clk 0:00:00]} 12. dxe5 {[%clk 0:00:00]}  Ng4 {[%clk 0:00:00]} 13. e4 {[%clk 0:00:00]}  Qg5 {[%clk 0:00:00]} 14. Re1 {[%clk 0:00:00]}  Qh5 {[%clk 0:00:00]} 15. exd5 {[%clk 0:00:00]}  Qf5 {[%clk 0:00:00]} 16. Qf3 {[%clk 0:00:00]}  Qh5 {[%clk 0:00:00]} 17. d6 {[%clk 0:00:00]}  Bd7 {[%clk 0:00:00]} 18. Qxb7 {[%clk 0:00:00]}  Rc8 {[%clk 0:00:00]} 19. Nc3 {[%clk 0:00:00]}  Qh2+ {[%clk 0:00:00]} 20. Kf1 {[%clk 0:00:00]}  Rh5 {[%clk 0:00:00]} 21. Rac1 {[%clk 0:00:00]}  Rf5 {[%clk 0:00:00]} 22. Ne4 {[%clk 0:00:00]}  Rd8 {[%clk 0:00:00]} 23. Rc7 {[%clk 0:00:00]}  Nxe5 {[%clk 0:00:00]} 24. Bxe5 {[%clk 0:00:00]}  Rxe5 {[%clk 0:00:00]} 25. Rxd7 {[%clk 0:00:00]}  Rxd7 {[%clk 0:00:00]} 26. Qc8+ {[%clk 0:00:00]}  Rd8 {[%clk 0:00:00]} 27. Qc6+ {[%clk 0:00:00]}  Rd7 {[%clk 0:00:00]} 28. Nc5 {[%clk 0:00:00]}  Rxc5 {[%clk 0:00:00]} 29. Qxc5 {[%clk 0:00:00]}  Bxd6 {[%clk 0:00:00]} 30. Qc8+ {[%clk 0:00:00]}  Ke7 {[%clk 0:00:00]} 31. Bc6 {[%clk 0:00:00]}  Qh3+ {[%clk 0:00:00]} 32. Kg1 {[%clk 0:00:00]}  Rd8 {[%clk 0:00:00]} 33. Qb7+ {[%clk 0:00:00]}  Kf8 {[%clk 0:00:00]} 34. Bg2 {[%clk 0:00:00]}  Qf5 {[%clk 0:00:00]} 35. Qe4 {[%clk 0:00:00]}  Qa5 {[%clk 0:00:00]} 36. Re2 {[%clk 0:00:00]}  Bc5 {[%clk 0:00:00]} 37. Bf3 {[%clk 0:00:00]}  Qc3 {[%clk 0:00:00]} 38. Kg2 {[%clk 0:00:00]}  Bb6 {[%clk 0:00:00]} 39. Qh7 {[%clk 0:00:00]}  Ke7 {[%clk 0:00:00]} 40. Qh4+ {[%clk 0:00:00]}  Qf6 {[%clk 0:00:00]} 41. Qxf6+ {[%clk 0:00:00]}  Kxf6 {[%clk 0:00:00]} 42. Rc2 {[%clk 0:00:00]}  Rd4 {[%clk 0:00:00]} 43. Kf1 {[%clk 0:00:00]}  g5 {[%clk 0:00:00]} 44. Ke2 {[%clk 0:00:00]}  g4 {[%clk 0:00:00]} 45. Bg2 {[%clk 0:00:00]}  Ke5 {[%clk 0:00:00]} 46. Rc4 {[%clk 0:00:00]}  f5 {[%clk 0:00:00]} 47. Rxd4 {[%clk 0:00:00]}  Kxd4 {[%clk 0:00:00]} 48. f3 {[%clk 0:00:00]}  gxf3+ {[%clk 0:00:00]} 49. Bxf3 {[%clk 0:00:00]}  e5 {[%clk 0:00:00]} 50. g4 {[%clk 0:00:00]}  e4 {[%clk 0:00:00]} 51. Bh1 {[%clk 0:00:00]}  f4 {[%clk 0:00:00]} 52. g5 {[%clk 0:00:00]}  Bd8 {[%clk 0:00:00]} 53. g6 {[%clk 0:00:00]}  Bf6 {[%clk 0:00:00]} 54. b4 {[%clk 0:00:00]}  f3+ {[%clk 0:00:00]} 55. Bxf3 {[%clk 0:00:00]}  exf3+ {[%clk 0:00:00]} 56. Kxf3 {[%clk 0:00:00]}  Kc4 {[%clk 0:00:00]} 57. Ke2 {[%clk 0:00:00]}  Kxb4 {[%clk 0:00:00]} 58. Kd1 {[%clk 0:00:00]}  Ka3 {[%clk 0:00:00]} 59. Kc1 {[%clk 0:00:00]}  Kxa2 {[%clk 0:00:00]} 60. Kc2 {[%clk 0:00:00]}  a5 {[%clk 0:00:00]} 61. Kd3 {[%clk 0:00:00]}  a4 {[%clk 0:00:00]} 62. Kc2 {[%clk 0:00:00]}  a3 {[%clk 0:00:00]} 63. Kc1 {[%clk 0:00:00]}  Bg7 {[%clk 0:00:00]} 64. Kc2 {[%clk 0:00:00]}  Bh6 {[%clk 0:00:00]} 0-1


[Site "https://www.chess.com"]

[Event "Titled Tuesday Blitz August 16 Late 2022"]
[White "Romanchuk, Viktor"]
[Black "Bortnyk, Olexandr"]
[WhiteFideId "14109271"]
[BlackFideId "14120828"]
[WhiteElo "2242"]
[BlackElo "2723"]
[Result "0-1"]
[Round "02"]
[TimeControl "180+1"]
[Date "2022.08.16"]
[WhiteClock "0:00:47"]
[BlackClock "0:01:49"]

1. d4 {[%clk 0:03:00]}  d6 {[%clk 0:02:59]} 2. c4 {[%clk 0:03:00]}  e5 {[%clk 0:02:59]} 3. Nc3 {[%clk 0:02:58]}  exd4 {[%clk 0:02:57]} 4. Qxd4 {[%clk 0:02:59]}  Nc6 {[%clk 0:02:57]} 5. Qd2 {[%clk 0:02:59]}  g6 {[%clk 0:02:58]} 6. b3 {[%clk 0:02:58]}  Bg7 {[%clk 0:02:58]} 7. Bb2 {[%clk 0:02:58]}  Nf6 {[%clk 0:02:58]} 8. g3 {[%clk 0:02:58]}  Be6 {[%clk 0:02:56]} 9. Bg2 {[%clk 0:02:58]}  Qd7 {[%clk 0:02:51]} 10. Nd5 {[%clk 0:02:39]}  Bxd5 {[%clk 0:02:49]} 11. cxd5 {[%clk 0:02:39]}  Ne7 {[%clk 0:02:47]} 12. e4 {[%clk 0:02:29]}  O-O {[%clk 0:02:43]} 13. Ne2 {[%clk 0:02:29]}  Rfe8 {[%clk 0:02:31]} 14. O-O {[%clk 0:02:28]}  h5 {[%clk 0:02:18]} 15. h3 {[%clk 0:02:06]}  a5 {[%clk 0:02:05]} 16. Rac1 {[%clk 0:01:50]}  a4 {[%clk 0:02:05]} 17. Rc2 {[%clk 0:01:45]}  axb3 {[%clk 0:02:04]} 18. axb3 {[%clk 0:01:45]}  c5 {[%clk 0:02:05]} 19. dxc6 {[%clk 0:01:44]}  Nxc6 {[%clk 0:02:05]} 20. Bxf6 {[%clk 0:01:19]}  Bxf6 {[%clk 0:02:05]} 21. Rd1 {[%clk 0:01:19]}  Qe6 {[%clk 0:01:57]} 22. Qxd6 {[%clk 0:01:10]}  Red8 {[%clk 0:01:56]} 23. Qd5 {[%clk 0:00:54]}  Nb4 {[%clk 0:01:49]} 24. Nf4 {[%clk 0:00:47]}  Rxd5 {[%clk 0:01:49]} 0-1


[Site "https://www.chess.com"]

[Event "Titled Tuesday Blitz August 16 Late 2022"]
[White "Sadovsky, Artem"]
[Black "Pinheiro, Iung Alicio de O."]
[WhiteFideId "4155840"]
[BlackFideId "2104350"]
[WhiteElo "2312"]
[BlackElo "2283"]
[Result "0-1"]
[Round "02"]
[TimeControl "180+1"]
[Date "2022.08.18"]
[WhiteClock "0:00:00"]
[BlackClock "0:00:00"]

1. d3 {[%clk 0:00:00]}  e5 {[%clk 0:00:00]} 2. Kd2 {[%clk 0:00:00]}  d5 {[%clk 0:00:00]} 3. c3 {[%clk 0:00:00]}  Nc6 {[%clk 0:00:00]} 4. Kc2 {[%clk 0:00:00]}  Nf6 {[%clk 0:00:00]} 5. Bg5 {[%clk 0:00:00]}  Be7 {[%clk 0:00:00]} 6. h3 {[%clk 0:00:00]}  O-O {[%clk 0:00:00]} 7. Nd2 {[%clk 0:00:00]}  a5 {[%clk 0:00:00]} 8. Bxf6 {[%clk 0:00:00]}  Bxf6 {[%clk 0:00:00]} 9. e4 {[%clk 0:00:00]}  Be6 {[%clk 0:00:00]} 10. Ngf3 {[%clk 0:00:00]}  a4 {[%clk 0:00:00]} 11. exd5 {[%clk 0:00:00]}  Bxd5 {[%clk 0:00:00]} 12. Ne4 {[%clk 0:00:00]}  Be7 {[%clk 0:00:00]} 13. Be2 {[%clk 0:00:00]}  b5 {[%clk 0:00:00]} 14. a3 {[%clk 0:00:00]}  Bb3+ {[%clk 0:00:00]} 0-1


[Site "https://www.chess.com"]